fUSD/lending_fUSD_20241219
["ID","MTS","AMOUNT","RATE_DAILY","PERIOD"]
[345986730,1734603046959,-5114.7788,0.000241,2]
[345986731,1734603046969,-500.0,0.00024109,2]
[345986732,1734603046979,-500.0,0.00024109,2]
[345986733,1734603046988,-150.99,0.00024174,2]
[345986734,1734603046998,-150.99,0.00024174,2]
[345986735,1734603047008,-1500.0,0.00024194,2]
[345986736,1734603047018,-1757.93,0.000242,2]
[345986737,1734603047027,-194.75,0.00024202,2]
[345986738,1734603047037,-150.0,0.00024239,2]
[345986739,1734603047046,-400.0,0.00024249,2]
[345986740,1734603047055,-1362.0,0.0002425,2]
[345986741,1734603047065,-500.0,0.00024383,2]
[345986742,1734603047075,-500.0,0.00024383,2]
[345986743,1734603047084,-800.0,0.00024452,2]
[345986744,1734603047093,-500.0,0.00024452,2]
[345986745,1734603047103,-1058.7773577,0.000245,2]
[345986746,1734603047112,-1280.70223342,0.000245,2]
[345986747,1734603047121,-1362.0,0.000245,2]
[345986748,1734603047130,-1000.0,0.000246,2]
[345986749,1734603047140,-911.5,0.00024624,15]
[345986750,1734603047149,-2000.0,0.00024624,120]
[345986751,1734603047158,-200.0,0.00024624,120]
[345986752,1734603047167,-500.0,0.00024657,2]
[345986753,1734603047176,-500.0,0.00024657,2]
[345986754,1734603047190,-21726.44793373,0.00024657,3]
[345986755,1734603047199,-150.0,0.00024658,2]
[345986756,1734603047209,-882.69,0.00024658,2]
[345986757,1734603047218,-507.0,0.000247,2]
[345986758,1734603047228,-200.0,0.000247,2]
[345986759,1734603047237,-2500.0,0.00024704,2]
[345986760,1734603047247,-1362.0,0.0002475,2]
[345986761,1734603047255,-478.9173,0.0002475,2]
[345986762,1734603047265,-150.0,0.00024758,2]
[345986763,1734603047274,-19815.08288886,0.000248,2]
[345986764,1734603047283,-20000.0,0.000248,60]
[345986765,1734603047295,-500.0,0.00024803,4]
[345986766,1734603047303,-501.48,0.00024803,4]
[345986767,1734603047312,-500.0,0.00024803,4]
[345986768,1734603047322,-559.69858338,0.00024803,4]
[345986769,1734603047331,-500.0,0.00024803,4]
[345986770,1734603047340,-500.0,0.00024803,4]
[345986771,1734603047349,-500.0,0.00024803,4]
[345986772,1734603047359,-500.0,0.00024803,4]
[345986773,1734603047368,-500.0,0.00024803,4]
[345986774,1734603047377,-500.0,0.00024803,4]
[345986775,1734603047386,-500.0,0.00024803,4]
[345986776,1734603047395,-500.0,0.00024803,4]
[345986777,1734603047404,-1000.0,0.00024803,2]
[345986778,1734603047413,-215.5628008,0.00024803,4]
[345986779,1734603047422,-500.0,0.00024803,4]
[345986780,1734603047432,-500.0,0.00024803,4]
[345986781,1734603047445,-500.0,0.00024803,4]
[345986782,1734603047454,-500.0,0.00024803,4]
[345986783,1734603047463,-500.0,0.00024803,4]
[345986784,1734603047472,-598.66873054,0.00024803,4]
[345986785,1734603047482,-500.0,0.00024803,4]
[345986786,1734603047491,-105110.26337166,0.00024804,2]
[345986787,1734603047500,-5000.0,0.00024885,2]
[345986788,1734603047509,-348.92980775,0.00024885,2]
[345986789,1734603047518,-507.72835291,0.00024899,2]
[345986790,1734603047527,-500.0,0.00024899,2]
[345986791,1734603047536,-500.0,0.00024899,4]
[345986792,1734603047545,-500.0,0.00024899,4]
[345986793,1734603047555,-181.55682788,0.00024899,4]
[345986794,1734603047564,-500.0,0.00024899,4]
[345986795,1734603047573,-500.0,0.00024899,4]
[345986796,1734603047582,-3028.16195657,0.000249,2]
[345986797,1734603047592,-5800.0,0.000249,2]
[345986798,1734603047601,-5714.1774,0.000249,2]
[345986799,1734603047614,-1108.8247,0.000249,2]
[345986800,1734603047623,-1309.71,0.000249,31]
[345986801,1734603047632,-1309.71,0.000249,31]
[345986802,1734603047643,-1309.71,0.000249,31]
[345986803,1734603047652,-1309.71,0.000249,31]
[345986804,1734603047662,-1309.71,0.000249,31]
[345986805,1734603047671,-1309.71,0.000249,31]
[345986806,1734603047680,-1309.71,0.000249,31]
[345986807,1734603047696,-1309.71,0.000249,31]
[345986808,1734603047706,-1309.71,0.000249,31]
[345986809,1734603047715,-1309.71,0.000249,31]
[345986810,1734603047724,-1309.71,0.000249,31]
[345986811,1734603047733,-1309.71,0.000249,31]
[345986812,1734603047743,-1309.71,0.000249,31]
[345986813,1734603047752,-1309.71,0.000249,31]
[345986814,1734603047761,-1309.71,0.000249,31]
[345986815,1734603047770,-628.64748501,0.000249,31]
[345986820,1734603475897,150.2,0.00010137,2]
[345986826,1734603602453,150.0,0.00010137,2]
[345986827,1734603602639,150.0,0.00010137,2]
[345986828,1734603602843,150.0,0.00010137,2]
[345986829,1734603603058,150.0,0.00010137,2]
[345986830,1734603603225,150.0,0.00010137,2]
[345986831,1734603603453,150.0,0.00010137,2]
[345986832,1734603603597,150.0,0.00010137,2]
[345986833,1734603603799,150.0,0.00010137,2]
[345986834,1734603603982,296.80626426,0.00010137,2]
[345986838,1734603908911,148291.35736156,0.00013,2]
[345986839,1734603911405,15915.56155676,0.000154,2]
[345986840,1734603920233,318.43555457,0.00015323,2]
[345986842,1734603957974,270.16008292,0.00014,2]
[345986845,1734603992176,1952.39529407,0.00015,2]
[345986847,1734604027784,9999.44462301,0.000157,2]
[345986848,1734604027809,94625.26329782,0.000157,2]
[345986891,1734604232545,-150.2,0.00018065,2]
[345986892,1734604232555,-338.94296466,0.0001901,7]
[345986893,1734604232564,-214.56658236,0.00019968,2]
[345986894,1734604232573,-150.2,0.0001997,2]
[345986895,1734604232583,-150.2,0.0001997,2]
[345986896,1734604232592,-150.2,0.0001997,2]
[345986897,1734604232602,-150.2,0.0001997,2]
[345986898,1734604232611,-150.2,0.0001997,2]
[345986899,1734604232620,-150.2,0.0001997,2]
[345986900,1734604232629,-150.2,0.0001997,2]
[345986901,1734604232638,-150.2,0.0001997,2]
[345986902,1734604232647,-150.2,0.0001997,2]
[345986903,1734604232656,-200.36315272,0.00019973,2]
[345986904,1734604232665,-200.19845312,0.00019973,2]
[345986905,1734604232674,-160.00081639,0.00019973,2]
[345986906,1734604232683,-500.0,0.00019973,2]
[345986907,1734604232691,-198.70601475,0.00019973,2]
[345986908,1734604232700,-202.41677387,0.00019973,2]
[345986909,1734604232709,-300.0,0.00019978,2]
[345986910,1734604232719,-293.14662681,0.00019979,2]
[345986911,1734604232728,-314.173245,0.00019979,2]
[345986912,1734604232737,-500.0,0.00019979,2]
[345986913,1734604232746,-500.0,0.00019979,2]
[345986914,1734604232755,-500.0,0.00019979,2]
[345986915,1734604232764,-500.0,0.00019979,2]
[345986916,1734604232773,-500.0,0.00019979,2]
[345986917,1734604232783,-500.0,0.00019979,2]
[345986918,1734604232793,-500.0,0.00019979,2]
[345986919,1734604232802,-500.0,0.00019979,2]
[345986920,1734604232811,-500.0,0.00019979,2]
[345986921,1734604232820,-500.0,0.00019979,2]
[345986922,1734604232829,-205.47480969,0.00019979,2]
[345986923,1734604232838,-500.0,0.00019979,2]
[345986924,1734604232847,-500.0,0.00019979,2]
[345986925,1734604232857,-396.47183522,0.00019979,2]
[345986926,1734604232866,-374.5258782,0.00019979,2]
[345986927,1734604232875,-500.0,0.00019979,2]
[345986928,1734604232884,-500.0,0.00019979,2]
[345986929,1734604232893,-500.0,0.00019979,2]
[345986930,1734604232902,-500.0,0.00019979,2]
[345986931,1734604232912,-500.0,0.00019979,2]
[345986932,1734604232921,-385.19848431,0.00019979,2]
[345986933,1734604232930,-500.0,0.00019979,2]
[345986934,1734604232939,-500.0,0.00019979,2]
[345986935,1734604232949,-500.0,0.00019979,2]
[345986936,1734604232962,-520.17467996,0.00019979,2]
[345986937,1734604232971,-500.0,0.00019979,2]
[345986938,1734604232981,-500.0,0.00019979,2]
[345986939,1734604232990,-500.0,0.00019979,2]
[345986940,1734604233001,-500.0,0.00019979,2]
[345986941,1734604233010,-500.0,0.00019979,2]
[345986942,1734604233021,-500.0,0.00019979,2]
[345986943,1734604233032,-78589.22160781,0.0001998,3]
[345986944,1734604233045,-393.98921903,0.0001998,3]
[345986945,1734604233057,-50873.97494411,0.0001998,3]
[345986946,1734604233068,-997.565596,0.0001998,3]
[345986947,1734604233080,-6120.76016774,0.0001998,3]
[345986948,1734604233093,-82795.71297127,0.0001998,3]
[345986949,1734604233109,-25837.16975837,0.0001998,3]
[345986951,1734604233122,-2195.18034566,0.0001998,3]
[345986954,1734604233134,-1594.632,0.0001998,3]
[345986956,1734604233146,-2134.89174766,0.0001998,3]
[345986958,1734604233159,-730.00793534,0.0001998,3]
[345986959,1734604233170,-313.7199995,0.0001998,3]
[345986960,1734604233183,-1000.0,0.0001998,3]
[345986979,1734604238381,-13201.61091819,0.0001998,3]
[345986980,1734604238391,-7267.95562559,0.0001998,3]
[345986981,1734604238402,-459.46225516,0.0001998,3]
[345986982,1734604238411,-52236.77846084,0.0001998,2]
[345986983,1734604238423,-8054.70534165,0.0001998,2]
[345986984,1734604238471,-15302.29935771,0.0001998,2]
[345986985,1734604238482,-5114.16218398,0.0001998,2]
[345986986,1734604238493,-673.33422121,0.0001998,2]
[345986987,1734604238505,-805.99158132,0.0001998,2]
[345986988,1734604238516,-2067.87797767,0.0001998,2]
[345986989,1734604238528,-908.75886,0.0001998,2]
[345986990,1734604238539,-3853.31981346,0.0001998,2]
[345986991,1734604238609,-1092.37002981,0.0001998,2]
[345986992,1734604238689,-17766.785694,0.0001998,2]
[345986993,1734604238701,-40872.0,0.0001998,2]
[345986994,1734604238712,-10702.71669712,0.0001998,2]
[345986995,1734604238778,-2.43391529,0.0001998,2]
[345987002,1734604240473,-2183.02713037,0.0001998,2]
[345987003,1734604240557,-783.988005,0.0001998,2]
[345987004,1734604240569,-515.96,0.0001998,2]
[345987005,1734604240580,-1665.93101099,0.0001998,2]
[345987006,1734604240592,-625.42636932,0.0001998,2]
[345987007,1734604240604,-698.09199999,0.0001998,2]
[345987008,1734604240615,-644.79999986,0.0001998,2]
[345987009,1734604240721,-3018.81544542,0.0001998,2]
[345987010,1734604240732,-1022.0265515,0.0001998,2]
[345987011,1734604240743,-1204.51437272,0.0001998,2]
[345987012,1734604240755,-3399.04791867,0.0001998,2]
[345987013,1734604240818,-4463.15286867,0.0001998,2]
[345987014,1734604240839,-91253.28797334,0.0001998,2]
[345987015,1734604240850,-316.84871083,0.0001998,2]
[345987039,1734604243410,-663.4143,0.0001998,2]
[345987040,1734604243497,-6948.7548495,0.0001998,2]
[345987041,1734604243509,-32211.13216937,0.0001998,2]
[345987042,1734604243520,-644.49623895,0.0001998,2]
[345987043,1734604243600,-10392.45998308,0.0001998,2]
[345987044,1734604243801,-333.48329553,0.0001998,2]
[345987082,1734604246608,-2014.02000004,0.0001998,2]
[345987088,1734604462039,2001.0,0.00018001,2]
[345987090,1734604498883,158.36,0.00010137,2]
[345987091,1734604499099,158.36,0.00016813,2]
[345987093,1734604666002,450.0,0.00013,2]
[345987094,1734604667049,500.0,0.00015,2]
[345987095,1734604787285,186.51,0.00019428,30]
[345987110,1734605342592,1176.73,0.00016725,2]
[345987115,1734605405420,159.4,0.00010137,2]
[345987117,1734605431639,-740.08409535,0.00018503,2]
[345987118,1734605431652,-165.51429812,0.0001851,2]
[345987119,1734605431663,-84.48570188,0.0001851,2]
[345987120,1734605431672,-1000.0,0.00018599,2]
[345987121,1734605431682,-597.52417931,0.00018603,2]
[345987122,1734605431696,-300.0,0.00018621,2]
[345987123,1734605431706,-8246.68311881,0.00018622,2]
[345987124,1734605431717,-9207.0,0.00018622,2]
[345987125,1734605431729,-7450.84707169,0.00018622,2]
[345987126,1734605431745,-54270.4698095,0.00018622,2]
[345987127,1734605431755,-200.0,0.00018703,2]
[345987128,1734605431764,-1852.42,0.00018703,2]
[345987129,1734605431774,-854.71,0.00018704,2]
[345987130,1734605431784,-177.47,0.00018748,2]
[345987131,1734605431793,-192.62,0.00018768,2]
[345987132,1734605431803,-23900.0,0.00018768,2]
[345987133,1734605431817,-576.61,0.00018867,2]
[345987134,1734605431828,-1176.73,0.00018988,2]
[345987135,1734605431838,-423.7608418,0.00018994,2]
[345987136,1734605431847,-500.0,0.00019042,2]
[345987137,1734605431856,-16756.56,0.00019089,2]
[345987138,1734605431867,-250.0,0.00019209,2]
[345987139,1734605431877,-1500.0,0.00019209,2]
[345987140,1734605431887,-250.0,0.0001925,2]
[345987141,1734605431896,-851.1516131,0.00019362,2]
[345987142,1734605431906,-200.0,0.00019369,2]
[345987143,1734605431915,-423.7608418,0.00019377,2]
[345987144,1734605431925,-167.91,0.00019398,2]
[345987145,1734605431934,-501.01,0.00019404,2]
[345987146,1734605431945,-423.7608418,0.00019483,2]
[345987147,1734605431955,-176.63,0.0001954,2]
[345987148,1734605431965,-394.54,0.0001954,2]
[345987149,1734605431974,-177.47,0.00019685,2]
[345987150,1734605431983,-1275.69096,0.0001978,2]
[345987151,1734605431993,-11496.71643959,0.0001979,2]
[345987152,1734605432002,-1411.53452825,0.000198,2]
[345987153,1734605432012,-161.07221604,0.0001988,2]
[345987154,1734605432021,-195.45840654,0.0001988,2]
[345987155,1734605432030,-153.45027383,0.0001988,2]
[345987156,1734605432039,-23315.16492516,0.0001988,2]
[345987157,1734605432056,-1921.05983066,0.0001988,2]
[345987158,1734605432068,-214.56658235,0.000199,2]
[345987159,1734605432077,-33.04367843,0.0001997,2]
[345987160,1734605432089,-117.18632157,0.0001997,2]
[345987161,1734605432099,-150.23,0.0001997,2]
[345987162,1734605432108,-150.23,0.0001997,2]
[345987163,1734605432117,-13.03431718,0.0001997,2]
[345987164,1734605432129,-137.19568282,0.0001997,2]
[345987165,1734605432139,-150.23,0.0001997,2]
[345987166,1734605432148,-150.23,0.0001997,2]
[345987167,1734605432157,-150.23,0.0001997,2]
[345987168,1734605432167,-500.0,0.00019973,2]
[345987170,1734605432176,-500.74282073,0.00019973,2]
[345987172,1734605432186,-206.53045747,0.00019973,2]
[345987174,1734605432195,-500.0,0.00019973,2]
[345987177,1734605432205,-500.0,0.00019973,2]
[345987179,1734605432214,-166.52686438,0.00019973,2]
[345987181,1734605432223,-257.67169439,0.00019973,2]
[345987184,1734605432232,-171.52046452,0.00019979,2]
[345987186,1734605432242,-283.10027114,0.00019979,2]
[345987188,1734605432251,-350.12013744,0.00019979,2]
[345987190,1734605432261,-500.0,0.00019979,2]
[345987192,1734605432270,-332.74674442,0.00019979,2]
[345987193,1734605432280,-205.20263877,0.00019979,2]
[345987194,1734605432289,-6671.21032021,0.00019979,2]
[345987195,1734605432299,-6903.47932058,0.0001998,3]
[345987199,1734605437536,-160.00444871,0.00019973,2]
[345987200,1734605437546,-160.00135443,0.00019973,2]
[345987201,1734605437557,-159.99754451,0.00019973,2]
[345987202,1734605437573,-31.84665235,0.0001998,3]
[345987203,1734605437754,-7429.2,0.0001998,3]
[345987204,1734605437766,-5370.65387853,0.0001998,3]
[345987205,1734605437778,-6179.71603,0.0001998,3]
[345987206,1734605437863,-5282.07991,0.0001998,3]
[345987215,1734605439611,-571.4487318,0.0001998,3]
[345987216,1734605439720,-5931.15431095,0.0001998,3]
[345987217,1734605439734,-276916.44064719,0.0001998,3]
[345987218,1734605439743,-3863.70894038,0.0001998,3]
[345987219,1734605439752,-100913.72357188,0.0001998,2]
[345987220,1734605439884,-512.27802841,0.0001998,2]
[345987221,1734605439895,-18599.6974951,0.0001998,2]
[345987222,1734605439935,-987.51773364,0.0001998,2]
[345987223,1734605439947,-500.0,0.0001998,2]
[345987224,1734605439964,-1809.67186652,0.0001998,2]
[345987289,1734605442852,-160125.47649742,0.0001998,2]
[345987304,1734605445605,-2656.83507188,0.0001998,2]
[345987305,1734605445617,-16154.6810877,0.0001998,2]
[345987306,1734605445629,-2081.85334189,0.0001998,2]
[345987307,1734605445897,-5132.2190332,0.0001998,2]
[345987308,1734605445909,-2112.7,0.0001998,2]
[345987309,1734605445920,-3846.52995895,0.0001998,2]
[345987310,1734605446009,-1016.07844231,0.0001998,2]
[345987311,1734605446020,-221481.27705928,0.0001998,2]
[345987312,1734605446040,-900.0,0.0001998,2]
[345987313,1734605446051,-7429.74376358,0.0001998,2]
[345987330,1734605816918,150.60592337,0.0002351,90]
[345987331,1734605906563,300.03,0.00016781,7]
[345987332,1734606346886,150.82,0.00010137,2]
[345987334,1734606383204,1122.11,0.00017053,2]
[345987335,1734606469393,450.0,0.00013,2]
[345987336,1734606470498,500.0,0.00015,2]
[345987337,1734606471585,550.0,0.00017,2]
[345987356,1734606631971,-709.935,0.000185,2]
[345987357,1734606631982,-537.16533982,0.000185,2]
[345987358,1734606631994,-2871.69041618,0.000185,2]
[345987359,1734606632003,-150.82,0.00018594,2]
[345987360,1734606632014,-200.0,0.00018605,2]
[345987361,1734606632023,-150.0,0.00018649,2]
[345987362,1734606632033,-1283.94,0.00018824,2]
[345987363,1734606632043,-167.91,0.00018845,2]
[345987364,1734606632053,-1451.29,0.00018928,2]
[345987365,1734606632063,-312.82,0.00018971,2]
[345987366,1734606632072,-1100.0,0.00018972,2]
[345987367,1734606632083,-200.0,0.00019052,2]
[345987368,1734606632092,-1047.16,0.00019082,2]
[345987369,1734606632101,-300.0,0.00019153,2]
[345987370,1734606632111,-175.33,0.00019154,2]
[345987371,1734606632120,-1000.0,0.00019195,2]
[345987372,1734606632129,-775.33,0.00019232,2]
[345987373,1734606632141,-4276.34,0.00019292,2]
[345987374,1734606632151,-1122.11,0.00019317,2]
[345987375,1734606632162,-19224.97957064,0.00019338,2]
[345987376,1734606632174,-1240.0000009,0.00019338,2]
[345987377,1734606632185,-1259.71401567,0.00019338,2]
[345987378,1734606632196,-2175.30641279,0.00019338,2]
[345987379,1734606632206,-311.11,0.00019462,2]
[345987380,1734606632217,-425.01395619,0.00019476,2]
[345987381,1734606632230,-768.13,0.00019592,2]
[345987382,1734606632241,-250.0,0.00019653,2]
[345987383,1734606632251,-250.0,0.00019667,2]
[345987384,1734606632260,-162.47,0.00019698,2]
[345987385,1734606632269,-250.0,0.00019698,2]
[345987386,1734606632279,-1223.15,0.00019698,2]
[345987387,1734606632288,-1563.0758,0.0001978,2]
[345987388,1734606632297,-1047.16,0.00019788,2]
[345987389,1734606632309,-1181.39,0.000198,2]
[345987391,1734606632318,-1431.26680061,0.0001988,5]
[345987393,1734606632327,-3075.00135022,0.0001988,2]
[345987395,1734606632337,-247.09479968,0.0001988,2]
[345987396,1734606632346,-500.0,0.00019973,2]
[345987397,1734606632355,-159.56231503,0.00019973,2]
[345987398,1734606632365,-159.97723821,0.00019973,2]
[345987400,1734606632374,-500.74888959,0.00019973,2]
[345987401,1734606632383,-160.00444765,0.00019973,2]
[345987402,1734606632396,-160.00444783,0.00019973,2]
[345987403,1734606632408,-44993.73603043,0.0001998,2]
[345987404,1734606632428,-606.1999975,0.0001998,2]
[345987405,1734606632448,-43010.79713,0.0001998,2]
[345987406,1734606632460,-2536.9097424,0.0001998,2]
[345987407,1734606632472,-8483.35406075,0.0001998,2]
[345987925,1734606637744,-50964.245096,0.0001998,2]
[345987932,1734606637805,-51268.9086757,0.0001998,2]
[345987951,1734606637987,-6525.14816497,0.0001998,2]
[345987953,1734606638001,-3222.63404312,0.0001998,2]
[345987956,1734606638014,-428.35,0.0001998,2]
[345987958,1734606638028,-30918.7668287,0.0001998,2]
[345987961,1734606638042,-394.51308796,0.0001998,2]
[345987964,1734606638061,-17583.4139739,0.0001998,2]
[345987966,1734606638076,-40668.39813942,0.0001998,2]
[345987968,1734606638093,-6916.0713964,0.0001998,2]
[345988153,1734606639853,-2439.08372236,0.0001998,2]
[345988163,1734606639932,-843.02387243,0.0001998,2]
[345988169,1734606639979,-4618.35,0.0001998,2]
[345988188,1734606640155,-4411.20096243,0.0001998,2]
[345988190,1734606640169,-3719.1233999,0.0001998,2]
[345988195,1734606640204,-18625.56180608,0.0001998,2]
[345988462,1734606642787,-1164.90682513,0.0001998,2]
[345988480,1734606642938,-3948.35972153,0.0001998,2]
[345988483,1734606642950,-10060.49919816,0.0001998,2]
[345988485,1734606642963,-3932.74721704,0.0001998,2]
[345988487,1734606642976,-254.529042,0.0001998,2]
[345988495,1734606643037,-4422.2573921,0.0001998,2]
[345988507,1734606643136,-833.87987711,0.0001998,2]
[345988767,1734606645831,-2093.92500371,0.0001998,2]
[345988769,1734606646056,-13505.02308374,0.0001998,2]
[345988770,1734606646074,-1353.0626722,0.0001998,2]
[345988771,1734606646086,-6566.46292781,0.0001998,2]
[345988772,1734606646102,-10252.0,0.0001998,2]
[345988773,1734606646113,-20516.4,0.0001998,2]
[345988774,1734606646128,-259.91533532,0.0001998,2]
[345988775,1734606646139,-853.05,0.0001998,2]
[345988776,1734606646150,-918.0,0.0001998,2]
[345988777,1734606646161,-3693.87889489,0.0001998,2]
[345988778,1734606646172,-777.741585,0.0001998,2]
[345988779,1734606646183,-3759.5482,0.0001998,2]
[345988780,1734606646219,-1509.66135946,0.0001998,2]
[345988799,1734606648482,225.0,0.00023,90]
[345988803,1734607050484,3001.0961285,0.0002351,90]
[345988804,1734607074815,1000.0,0.000225,30]
[345988805,1734607387051,1245.73,0.00016911,2]
[345988807,1734607407456,152.94,0.00010137,2]
[345988808,1734607407833,152.94,0.00016813,2]
[345988811,1734607707596,10000.0,0.0002351,90]
[345988814,1734607735625,10000.0,0.0002351,90]
[345988816,1734607755145,10000.0,0.0002351,90]
[345988817,1734607771674,10000.0,0.0002351,90]
[345988819,1734607787502,10000.0,0.0002351,90]
[345988820,1734607803767,10000.0,0.0002351,90]
[345988822,1734607822806,10000.0,0.0002351,90]
[345988826,1734607832232,-250.0,0.00018444,2]
[345988827,1734607832242,-814.76,0.0001849,2]
[345988828,1734607832252,-40.35623385,0.00018521,2]
[345988829,1734607832263,-109.64376615,0.00018521,2]
[345988830,1734607832272,-250.0,0.00018553,2]
[345988831,1734607832281,-200.0,0.00018657,2]
[345988832,1734607832290,-162.14,0.00018659,2]
[345988833,1734607832299,-304.84,0.00018761,2]
[345988834,1734607832309,-5620.39,0.00018829,2]
[345988835,1734607832318,-2575.7759,0.00018872,2]
[345988836,1734607832327,-300.0,0.00018885,2]
[345988837,1734607832337,-919.57,0.00018886,2]
[345988838,1734607832347,-500.0,0.00018972,2]
[345988839,1734607832356,-1100.0,0.00018972,2]
[345988840,1734607832366,-1001.04,0.00018976,2]
[345988841,1734607832377,-471.488,0.0001898,2]
[345988842,1734607832386,-200.0,0.00019015,2]
[345988843,1734607832395,-2840.5974,0.0001903,2]
[345988844,1734607832403,-1000.0,0.0001913,2]
[345988845,1734607832413,-173.73,0.00019157,2]
[345988846,1734607832422,-1245.73,0.00019175,2]
[345988847,1734607832431,-250.0,0.00019198,2]
[345988848,1734607832440,-879.27,0.00019212,2]
[345988849,1734607832450,-837.98,0.00019266,2]
[345988850,1734607832459,-919.57,0.00019585,2]
[345988851,1734607832468,-23900.0,0.00019615,2]
[345988852,1734607832477,-250.0,0.00019678,2]
[345988853,1734607832487,-1975.24,0.00019742,2]
[345988854,1734607832496,-1302.56316,0.0001978,2]
[345988855,1734607832505,-394.8885,0.000198,2]
[345988856,1734607832515,-4992.4492,0.000198,2]
[345988857,1734607832525,-675.4484,0.000198,2]
[345988858,1734607832534,-23923.7369,0.000198,2]
[345988859,1734607832543,-222.38531973,0.000198,2]
[345988860,1734607832553,-2767.50121518,0.0001988,2]
[345988861,1734607832562,-26435.11084886,0.000199,2]
[345988862,1734607832585,-2187.868896,0.000199,2]
[345988865,1734607838127,-278.40311,0.00019772,2]
[345988866,1734607838139,-21.59689,0.00019772,2]
[345988867,1734607838149,-4925.49858806,0.000199,2]
[345988868,1734607838165,-802.28108376,0.000199,2]
[345988869,1734607838176,-1275.23957711,0.000199,2]
[345988870,1734607838187,-40788.2331713,0.000199,2]
[345988871,1734607838201,-454.5611665,0.000199,2]
[345988872,1734607838212,-10453.75048581,0.000199,2]
[345988873,1734607838299,-27303.31686118,0.000199,2]
[345988879,1734607840040,-1805.0000005,0.000199,2]
[345988880,1734607840052,-2034.52399846,0.000199,2]
[345988881,1734607840256,-3300.0,0.000199,2]
[345988882,1734607840290,-741.30826342,0.000199,2]
[345988883,1734607840492,-4657.0,0.000199,2]
[345988884,1734607840503,-279.3122,0.000199,2]
[345988885,1734607840515,-340.39927,0.000199,2]
[345988886,1734607840526,-623.48895079,0.000199,2]
[345988887,1734607841632,10000.0,0.0002351,90]
[345988895,1734607843139,-5999.96719951,0.000199,2]
[345988896,1734607843259,-361.45361106,0.000199,2]
[345989131,1734607846039,-1787.68132427,0.000199,2]
[345989132,1734607846051,-3693.87889489,0.000199,2]
[345989133,1734607846183,-282.3251972,0.000199,2]
[345989134,1734607846226,-269.50884,0.000199,2]
[345989135,1734607846355,-5125.6205,0.000199,2]
[345989137,1734607910794,-300.0,0.000199,7]
[345989142,1734608273830,450.0,0.00013,2]
[345989143,1734608274960,500.0,0.00015,2]
[345989144,1734608275963,550.0,0.00017,2]
[345989145,1734608309944,159.4,0.00010137,2]
[345989147,1734608323938,1180.81,0.00017269,2]
[345989148,1734608760083,-1100.0,0.00018972,2]
[345989149,1734608760105,-468.162,0.0001898,2]
[345989150,1734608760127,-250.0,0.00019,2]
[345989151,1734608760150,-23900.0,0.00019187,2]
[345989152,1734608760172,-639.69,0.00019259,2]
[345989153,1734608760193,-173.73,0.00019283,2]
[345989154,1734608760214,-250.0,0.00019304,2]
[345989155,1734608760235,-150.0,0.00019397,2]
[345989156,1734608760260,-1000.0,0.00019431,2]
[345989157,1734608760284,-745.15,0.00019485,2]
[345989158,1734608760305,-439.63,0.0001953,2]
[345989159,1734608760327,-1180.81,0.00019533,2]
[345989160,1734608760347,-500.0,0.00019562,2]
[345989161,1734608760368,-250.0,0.00019602,2]
[345989162,1734608760389,-4404.0,0.00019677,2]
[345989163,1734608760409,-1535.4696,0.000198,2]
[345989164,1734608760431,-200.14678773,0.0001988,2]
[345989165,1734608760453,-200.29257,0.000199,2]
[345989166,1734608760478,-1520.33786,0.000199,2]